fUST/lending_fUST_20260220
["ID","MTS","AMOUNT","RATE_DAILY","PERIOD"]
[406136478,1771590632221,-409.49173393,0.00016309,2]
[406136480,1771590632234,-90.50826607,0.00016309,2]
[406136482,1771590632247,-500.0,0.00016309,2]
[406136484,1771590632260,-500.0,0.00016309,2]
[406136485,1771590632273,-500.0,0.00016309,2]
[406136486,1771590632284,-500.0,0.00016309,2]
[406136487,1771590632297,-500.0,0.00016309,2]
[406136488,1771590632310,-500.0,0.00016309,2]
[406136490,1771590632324,-500.0,0.00016309,2]
[406136491,1771590632335,-500.0,0.00016309,2]
[406136492,1771590632345,-523.42998213,0.00016309,2]
[406136493,1771590632356,-500.0,0.00016309,2]
[406136494,1771590632367,-500.0,0.00016309,2]
[406136495,1771590632380,-500.0,0.00016309,2]
[406136496,1771590632393,-500.0,0.00016309,2]
[406136497,1771590632405,-500.0,0.00016309,2]
[406136498,1771590632415,-500.0,0.00016309,2]
[406136499,1771590632427,-500.0,0.00016309,2]
[406136500,1771590632438,-265.97011437,0.00016309,2]
[406136501,1771590632451,-500.0,0.00016309,2]
[406136502,1771590632461,-500.0,0.00016309,2]
[406136503,1771590632472,-500.0,0.00016309,2]
[406136504,1771590632483,-500.0,0.00016309,2]
[406136505,1771590632495,-500.0,0.00016309,2]
[406136506,1771590632506,-500.0,0.00016309,2]
[406136507,1771590632516,-500.0,0.00016309,2]
[406136508,1771590632527,-300.70664099,0.00016309,2]
[406136509,1771590632538,-500.0,0.00016309,2]
[406136510,1771590632549,-500.0,0.00016309,2]
[406136511,1771590632560,-500.0,0.00016309,2]
[406136512,1771590632571,-500.0,0.00016309,2]
[406136513,1771590632584,-500.0,0.00016309,2]
[406136514,1771590632594,-345.96026167,0.00016309,2]
[406136515,1771590632606,-500.0,0.00016309,2]
[406136516,1771590632618,-153.18781112,0.00016309,2]
[406136517,1771590632632,-346.81218888,0.00016309,2]
[406136518,1771590632644,-500.0,0.00016309,2]
[406136519,1771590632655,-330.27095875,0.00016309,2]
[406136560,1771590638372,-817.70091215,0.00016216,2]
[406136562,1771590638383,-92.36948023,0.00016309,2]
[406137098,1771590643572,-77.35956102,0.00016309,2]
[406137100,1771590643584,-500.0,0.00016309,2]
[406137102,1771590643594,-500.0,0.00016309,2]
[406137104,1771590643603,-500.0,0.00016309,2]
[406137106,1771590643612,-500.0,0.00016309,2]
[406137108,1771590643622,-500.0,0.00016309,2]
[406137110,1771590643631,-443.94596002,0.00016309,2]
[406137366,1771590646203,-56.05403998,0.00016309,2]
[406137368,1771590646212,-500.0,0.00016309,2]
[406137370,1771590646222,-500.0,0.00016309,2]
[406137372,1771590646231,-500.0,0.00016309,2]
[406137374,1771590646240,-500.0,0.00016309,2]
[406137376,1771590646250,-500.0,0.00016309,2]
[406137378,1771590646259,-500.0,0.00016309,2]
[406137380,1771590646268,-500.0,0.00016309,2]
[406137382,1771590646277,-500.0,0.00016309,2]
[406137384,1771590646287,-500.0,0.00016309,2]
[406137386,1771590646296,-500.0,0.00016309,2]
[406137388,1771590646307,-500.0,0.00016309,2]
[406137390,1771590646316,-500.0,0.00016309,2]
[406137392,1771590646325,-500.0,0.00016309,2]
[406137394,1771590646335,-500.0,0.00016309,2]
[406137396,1771590646344,-500.0,0.00016309,2]
[406137398,1771590646353,-500.0,0.00016309,2]
[406137400,1771590646362,-500.0,0.00016309,2]
[406137402,1771590646371,-500.0,0.00016309,2]
[406137404,1771590646380,-500.0,0.00016309,2]
[406137406,1771590646389,-500.0,0.00016309,2]
[406137408,1771590646398,-500.0,0.00016309,2]
[406137410,1771590646407,-500.0,0.00016309,2]
[406137412,1771590646417,-500.0,0.00016309,2]
[406137414,1771590646426,-500.0,0.00016309,2]
[406137416,1771590646435,-500.0,0.00016309,2]
[406137417,1771590646444,-500.0,0.00016309,2]
[406137419,1771590646454,-500.0,0.00016309,2]
[406137421,1771590646463,-500.0,0.00016309,2]
[406137423,1771590646472,-167.9227104,0.00016309,2]
[406137425,1771590646481,-500.0,0.00016309,2]
[406137427,1771590646490,-259.22196798,0.00016309,2]
[406137430,1771590646501,-240.77803202,0.00016309,2]
[406137432,1771590646511,-500.0,0.00016309,2]
[406137434,1771590646521,-500.0,0.00016309,2]
[406137436,1771590646531,-500.0,0.00016309,2]
[406137438,1771590646540,-500.0,0.00016309,2]
[406137440,1771590646550,-500.0,0.00016309,2]
[406137442,1771590646560,-500.0,0.00016309,2]
[406137444,1771590646571,-500.0,0.00016309,2]
[406137446,1771590646584,-500.0,0.00016309,2]
[406137448,1771590646594,-11815.53405467,0.00016309,2]
[406137450,1771590646605,-13998.64488902,0.00016309,2]
[406137452,1771590646616,-309.70209011,0.0001631,2]
[406137454,1771590646625,-300.0,0.00016314,2]
[406137456,1771590646634,-300.0,0.00016314,2]
[406137458,1771590646644,-300.0,0.00016314,2]
[406137460,1771590646653,-300.0,0.00016314,2]
[406137462,1771590646662,-300.0,0.00016314,2]
[406137464,1771590646672,-300.0,0.00016314,2]
[406137466,1771590646681,-300.0,0.00016314,2]
[406137468,1771590646690,-300.0,0.00016314,2]
[406137470,1771590646699,-300.0,0.00016314,2]
[406137472,1771590646709,-300.0,0.00016314,2]
[406137474,1771590646719,-300.0,0.00016314,2]
[406137476,1771590646729,-300.0,0.00016314,2]
[406137478,1771590646739,-300.0,0.00016314,2]
[406137480,1771590646748,-300.0,0.00016314,2]
[406137482,1771590646761,-300.0,0.00016314,2]
[406137484,1771590646770,-500.0,0.00016463,2]
[406137486,1771590646779,-500.0,0.00016463,2]
[406137488,1771590646789,-600.0,0.00016639,2]
[406137490,1771590646798,-995.3543015,0.00016953,2]
[406137492,1771590646808,-645.01155458,0.00017069,2]
[406137494,1771590646817,-300.36176821,0.00017967,2]
[406137496,1771590646827,-583.79,0.00017987,3]
[406137498,1771590646836,-486.49,0.00017987,3]
[406137500,1771590646846,-243.24,0.00017987,3]
[406137502,1771590646855,-729.77,0.00017987,3]
[406137504,1771590646865,-500.0,0.00017995,2]
[406137506,1771590646875,-500.0,0.00017996,2]
[406137508,1771590646884,-500.0,0.00017996,2]
[406137510,1771590646893,-500.0,0.00017996,2]
[406137512,1771590646903,-500.0,0.00017996,2]
[406137514,1771590646912,-500.0,0.00017996,2]
[406137516,1771590646922,-500.0,0.00017996,2]
[406137518,1771590646931,-500.0,0.00017996,2]
[406137520,1771590646941,-543.09145377,0.00017996,2]
[406137522,1771590646950,-20030.92478208,0.00017997,2]
[406149417,1771590871427,-3000.0,0.00041307,120]
[406149418,1771590871451,-800.0,0.00041307,120]
[406149419,1771590871473,-300.0,0.00041307,120]
[406149420,1771590871495,-1001.30372007,0.00041307,30]
[406149421,1771590871518,-2036.93253359,0.00041307,30]
[406149422,1771590871540,-1978.50466581,0.00041307,120]
[406149423,1771590871568,-415.81066413,0.00041307,120]
[406149424,1771590871594,-215.05170135,0.00041307,120]
[406149425,1771590871617,-266.56454723,0.00041307,30]
[406149426,1771590871640,-1023.59510622,0.00041307,30]
[406149427,1771590871666,-2250.33436858,0.00041307,35]
[406149428,1771590871692,-478.21267299,0.00041307,120]
[406149429,1771590871714,-763.53066022,0.00041307,120]
[406149430,1771590871737,-626.30203548,0.00041307,30]
[406149431,1771590871760,-745.2515881,0.00041307,120]
[406149432,1771590871782,-539.19972589,0.00041307,120]
[406149433,1771590871804,-155.46566544,0.00041307,120]
[406149434,1771590871826,-167.82537438,0.00041307,30]
[406149435,1771590871849,-1455.5385951,0.00041307,120]
[406149436,1771590871871,-1240.41733152,0.00041307,120]
[406149437,1771590871893,-990.46275095,0.00041307,30]
[406149438,1771590871915,-177.53896248,0.00041307,120]
[406149439,1771590871939,-1682.23389728,0.00041307,30]
[406149440,1771590871962,-158.31244849,0.00041307,30]
[406149441,1771590871984,-286.14293667,0.00041307,120]
[406149442,1771590872007,-183.88119506,0.00041307,120]
[406149443,1771590872132,-1147.70447744,0.00041307,30]
[406149444,1771590872156,-1592.49836957,0.00041307,120]
[406149445,1771590872179,-294.57659289,0.00041307,31]
[406149446,1771590872201,-670.54852714,0.00041307,30]
[406149447,1771590872223,-1043.75003998,0.00041307,30]
[406149448,1771590872245,-2297.82079037,0.00041307,120]
[406149449,1771590872266,-158.88155536,0.00041307,30]
[406149450,1771590872289,-532.99331488,0.00041307,120]
[406149451,1771590872312,-5000.0,0.00041307,120]
[406149452,1771590872334,-786588.39154737,0.00041307,30]
[406149453,1771590872356,-500.0,0.00041307,120]
[406149454,1771590872379,-4634.0,0.00041307,120]
[406149455,1771590872400,-3153.0,0.00041307,120]
[406149456,1771590872424,-2000.0,0.00041307,120]
[406149457,1771590872448,-234.0,0.00041307,120]
[406149458,1771590872472,-305.45249,0.00041307,60]
[406149459,1771590872495,-800.0,0.00041307,30]
[406149460,1771590872522,-308.74335817,0.00041307,120]
[406149461,1771590872546,-180.50982557,0.00041307,33]
[406149462,1771590872570,-3391.51816597,0.00041307,30]
[406149463,1771590872592,-3161.54452144,0.00041307,120]
[406149464,1771590872616,-1567.26719254,0.00041307,30]
[406149465,1771590872639,-275.1633691,0.00041307,33]
[406149466,1771590872665,-1665.27729561,0.00041307,120]
[406149467,1771590872691,-1808.46404069,0.00041307,120]
[406149468,1771590872713,-220.34109632,0.00041307,120]
[406149469,1771590872738,-497.17656877,0.00041307,60]
[406149470,1771590872760,-202.82606582,0.00041307,30]
[406149471,1771590872786,-198.82527345,0.00041307,120]
[406149472,1771590872810,-198.82527345,0.00041307,120]
[406149473,1771590872834,-198.82527345,0.00041307,120]
[406149474,1771590872859,-269.1301894,0.00041307,120]
[406149475,1771590872882,-269.1301894,0.00041307,120]
[406149476,1771590872907,-269.13018939,0.00041307,120]
[406149477,1771590872930,-31380.10015367,0.00041307,30]
[406149478,1771590872954,-1279912.19042952,0.00041307,30]
[406149479,1771590872978,-14096.03,0.00041307,120]
[406149480,1771590873000,-1189.820253,0.00041307,120]
[406149481,1771590873023,-3173.0,0.00041307,60]
[406149482,1771590873059,-5000.0,0.00041307,120]
[406149483,1771590873089,-5000.0,0.00041307,90]
[406149484,1771590873123,-5000.0,0.00041307,60]
[406149485,1771590873157,-551023.49773941,0.00041307,30]
[406149486,1771590873194,-345.40044906,0.00041307,120]
[406149487,1771590873227,-500.0,0.00041307,30]
[406149488,1771590873258,-306.34059895,0.00041307,30]
[406149489,1771590873291,-500.0,0.00041307,30]
[406149490,1771590873319,-310.5297752,0.00041307,120]
[406149491,1771590873351,-1259960.66523072,0.00041307,30]
[406149492,1771590873383,-28405.94671005,0.00041307,120]
[406149493,1771590873418,-161.72349687,0.00041307,120]
[406149494,1771590873447,-286.0,0.00041307,120]
[406149495,1771590873475,-964874.02642298,0.00041307,30]
[406149496,1771590877616,-3035125.97357702,0.00041307,30]
[406149497,1771590877641,-217.0046664,0.00041307,120]
[406149498,1771590877671,-217.0046664,0.00041307,120]
[406149499,1771590877696,-217.0046664,0.00041307,120]
[406149500,1771590877720,-2089.0,0.00041307,30]
[406149501,1771590877746,-1190.0,0.00041307,120]
[406149502,1771590877770,-307.1979388,0.00041307,30]
[406149503,1771590877793,-307.1546707,0.00041307,30]
[406149504,1771590877818,-307.1114028,0.00041307,30]
[406149505,1771590877842,-307.197939,0.00041307,30]
[406149506,1771590877866,-606.3213152,0.00041307,30]
[406149507,1771590877889,-606.3213152,0.00041307,30]
[406149508,1771590877914,-606.3213152,0.00041307,30]
[406149509,1771590877940,-606.3213152,0.00041307,30]
[406149510,1771590877964,-305.7805245,0.00041307,30]
[406149511,1771590877988,-307.1979388,0.00041307,30]
[406149512,1771590878011,-606.3213152,0.00041307,30]
[406149513,1771590878033,-606.3213152,0.00041307,30]
[406149514,1771590878056,-606.3213152,0.00041307,30]
[406149515,1771590878079,-606.3213152,0.00041307,30]
[406149516,1771590878103,-186.1253935,0.00041307,30]
[406149517,1771590878127,-307.111403,0.00041307,30]
[406149518,1771590878150,-606.3213152,0.00041307,30]
[406149519,1771590878174,-606.3213152,0.00041307,30]
[406149520,1771590878197,-186.1253935,0.00041307,30]
[406149521,1771590878219,-186.1253935,0.00041307,30]
[406149522,1771590878242,-606.3213152,0.00041307,30]
[406149523,1771590878265,-185.6421596,0.00041307,30]
[406149524,1771590878289,-606.3213152,0.00041307,30]
[406149525,1771590878313,-259.3674462,0.00041307,30]
[406149526,1771590878339,-323.5979665,0.00041307,30]
[406149527,1771590878363,-606.3213152,0.00041307,30]
[406149528,1771590878386,-307.1979388,0.00041307,30]
[406149529,1771590878409,-402.5179009,0.00041307,30]
[406149530,1771590878432,-186.1253935,0.00041307,30]
[406149531,1771590878455,-150.0,0.00041307,30]
[406149532,1771590878479,-195.5852973,0.00041307,30]
[406149533,1771590878502,-186.1253935,0.00041307,30]
[406149534,1771590878525,-150.0,0.00041307,30]
[406149535,1771590878550,-606.1017251,0.00041307,30]
[406149536,1771590878575,-323.5979665,0.00041307,30]
[406149537,1771590878598,-210.5134044,0.00041307,30]
[406149538,1771590878621,-152.897095,0.00041307,30]
[406149539,1771590878643,-150.0,0.00041307,30]
[406149540,1771590878670,-606.3213152,0.00041307,30]
[406149541,1771590878695,-186.1253935,0.00041307,30]
[406149542,1771590878718,-323.5979665,0.00041307,30]
[406149543,1771590878743,-195.5852973,0.00041307,30]
[406149544,1771590878765,-150.0,0.00041307,30]
[406149545,1771590878789,-150.0,0.00041307,30]
[406149546,1771590878812,-186.1253935,0.00041307,30]
[406149547,1771590878835,-606.3213152,0.00041307,30]
[406149548,1771590878862,-606.3213152,0.00041307,30]
[406149549,1771590878885,-186.1253935,0.00041307,30]
[406149550,1771590878908,-150.0,0.00041307,30]
[406149551,1771590878932,-198.0737084,0.00041307,30]
[406149552,1771590878956,-150.0,0.00041307,30]
[406149553,1771590878981,-186.1253935,0.00041307,30]
[406149554,1771590879006,-606.3213152,0.00041307,30]
[406149555,1771590879030,-323.5979665,0.00041307,30]
[406149556,1771590879055,-150.0,0.00041307,30]
[406149557,1771590879078,-323.5979665,0.00041307,30]
[406149558,1771590879101,-150.0,0.00041307,30]
[406149559,1771590879124,-473.8272675,0.00041307,30]
[406149560,1771590879146,-186.1253935,0.00041307,30]
[406149561,1771590879169,-150.0,0.00041307,30]
[406149562,1771590879191,-186.1253935,0.00041307,30]
[406149563,1771590879213,-606.3213152,0.00041307,30]
[406149564,1771590879343,-323.543976,0.00041307,30]
[406149565,1771590879368,-150.0,0.00041307,30]
[406149566,1771590879392,-304.2284487,0.00041307,30]
[406149567,1771590879415,-186.1253935,0.00041307,30]
[406149568,1771590879437,-323.5979665,0.00041307,30]
[406149569,1771590879460,-606.3213152,0.00041307,30]
[406149570,1771590879483,-195.4479213,0.00041307,30]
[406149571,1771590879505,-323.5979665,0.00041307,30]
[406149572,1771590879527,-606.3213152,0.00041307,30]
[406149573,1771590879549,-186.1253935,0.00041307,30]
[406149574,1771590879572,-195.2158322,0.00041307,30]
[406149575,1771590879596,-186.0614477,0.00041307,30]
[406149576,1771590879619,-606.3213152,0.00041307,30]
[406149577,1771590879640,-323.5979665,0.00041307,30]
[406149578,1771590879670,-195.5509533,0.00041307,30]
[406149579,1771590879695,-606.3213152,0.00041307,30]
[406149580,1771590879717,-323.5979665,0.00041307,30]
[406149581,1771590879741,-186.1253935,0.00041307,30]
[406149582,1771590879765,-323.5979665,0.00041307,30]
[406149583,1771590879788,-186.1059891,0.00041307,30]
[406149584,1771590879811,-606.3213152,0.00041307,30]
[406149585,1771590879833,-150.0,0.00041307,30]
[406149586,1771590879855,-195.5852973,0.00041307,30]
[406149587,1771590879878,-186.1253935,0.00041307,30]
[406149588,1771590879901,-150.0,0.00041307,30]
[406149589,1771590879926,-323.5979665,0.00041307,30]
[406149590,1771590879948,-606.3213152,0.00041307,30]
[406149591,1771590879971,-195.5852973,0.00041307,30]
[406149592,1771590879994,-186.1253935,0.00041307,30]
[406149593,1771590880017,-605.4604255,0.00041307,30]
[406149594,1771590880040,-326.3272347,0.00041307,30]
[406149595,1771590880062,-150.0,0.00041307,30]
[406149596,1771590880085,-186.1253935,0.00041307,30]
[406149597,1771590880108,-606.3213152,0.00041307,30]
[406149598,1771590880132,-323.5979665,0.00041307,30]
[406149599,1771590880155,-150.0,0.00041307,30]
[406149600,1771590880178,-186.1253935,0.00041307,30]
[406149601,1771590880201,-606.3213152,0.00041307,30]
[406149602,1771590880225,-150.0,0.00041307,30]
[406149603,1771590880248,-195.5852973,0.00041307,30]
[406149604,1771590880271,-186.1253935,0.00041307,30]
[406149605,1771590880293,-307.1979388,0.00041307,30]
[406149606,1771590880317,-606.3213152,0.00041307,30]
[406149607,1771590880340,-323.5979665,0.00041307,30]
[406149608,1771590880364,-195.5852973,0.00041307,30]
[406149609,1771590880386,-150.0,0.00041307,30]
[406149610,1771590880415,-606.3213152,0.00041307,30]
[406149611,1771590880438,-323.5979665,0.00041307,30]
[406149612,1771590880461,-186.1253938,0.00041307,30]
[406149613,1771590880483,-195.2089833,0.00041307,30]
[406149614,1771590880506,-323.5979665,0.00041307,30]
[406149615,1771590880528,-185.5828001,0.00041307,30]
[406149616,1771590880551,-186.1253935,0.00041307,30]
[406149617,1771590880574,-606.3213152,0.00041307,30]
[406149618,1771590880597,-185.6831782,0.00041307,30]
[406149619,1771590880621,-150.0,0.00041307,30]
[406149620,1771590880644,-195.5852973,0.00041307,30]
[406149621,1771590880670,-439.7845287,0.00041307,30]
[406149622,1771590880693,-186.1253935,0.00041307,30]
[406149623,1771590880716,-307.1979387,0.00041307,30]
[406149624,1771590880743,-323.5979665,0.00041307,30]
[406149625,1771590880766,-150.0,0.00041307,30]
[406149626,1771590880789,-195.5852973,0.00041307,30]
[406149627,1771590880811,-150.0,0.00041307,30]
[406149628,1771590880834,-606.3213152,0.00041307,30]
[406149629,1771590880859,-186.1253935,0.00041307,30]
[406149630,1771590880883,-323.5979665,0.00041307,30]
[406149631,1771590880907,-606.3213152,0.00041307,30]
[406149632,1771590880929,-323.5979665,0.00041307,30]
[406149633,1771590880952,-186.1253935,0.00041307,30]
[406149634,1771590880975,-188.1051966,0.00041307,30]
[406149635,1771590880997,-606.3213152,0.00041307,30]
[406149636,1771590881020,-195.5852973,0.00041307,30]
[406149637,1771590881044,-150.0,0.00041307,30]
[406149638,1771590881067,-323.5979665,0.00041307,30]
[406149639,1771590881092,-186.1253935,0.00041307,30]
[406149640,1771590881115,-606.3213152,0.00041307,30]
[406149641,1771590881137,-195.5852973,0.00041307,30]
[406149642,1771590881161,-150.0,0.00041307,30]
[406149643,1771590881184,-186.1253935,0.00041307,30]
[406149644,1771590881206,-151.0,0.00041307,120]
[406149645,1771590881228,-151.0,0.00041307,120]
[406149646,1771590881251,-151.0,0.00041307,120]
[406149647,1771590881274,-151.0,0.00041307,120]
[406149648,1771590881297,-323.5979665,0.00041307,30]
[406149649,1771590881320,-151.0,0.00041307,120]
[406149650,1771590881343,-606.3213152,0.00041307,30]
[406149651,1771590881366,-275.194409,0.00041307,120]
[406149652,1771590881391,-151.0,0.00041307,60]
[406149653,1771590881417,-151.0,0.00041307,60]
[406149654,1771590881440,-151.0,0.00041307,60]
[406149655,1771590881462,-214.60117,0.00041307,60]
[406149656,1771590881484,-150.0,0.00041307,30]
[406149657,1771590881511,-195.5852973,0.00041307,30]
[406149658,1771590881534,-186.1253935,0.00041307,30]
[406149659,1771590881556,-606.3213152,0.00041307,30]
[406149660,1771590881578,-322.9500792,0.00041307,30]
[406149661,1771590881600,-151.0,0.00041307,120]
[406149662,1771590881623,-211.823523,0.00041307,120]
[406149663,1771590881648,-606.3213152,0.00041307,30]
[406149664,1771590881677,-186.1253935,0.00041307,30]
[406149665,1771590881804,-150.0,0.00041307,30]
[406149666,1771590881828,-195.5852973,0.00041307,30]
[406149667,1771590881852,-323.5979665,0.00041307,30]
[406149668,1771590881875,-186.1253935,0.00041307,30]
[406149669,1771590881898,-606.3213152,0.00041307,30]
[406149670,1771590881922,-150.0,0.00041307,30]
[406149671,1771590881946,-198.4503259,0.00041307,30]
[406149672,1771590881969,-186.1253935,0.00041307,30]
[406149673,1771590881993,-606.3213152,0.00041307,30]
[406149674,1771590882016,-323.5439761,0.00041307,30]
[406149675,1771590882038,-195.5852973,0.00041307,30]
[406149676,1771590882060,-150.0,0.00041307,30]
[406149677,1771590882083,-606.3213152,0.00041307,30]
[406149678,1771590882105,-186.1253935,0.00041307,30]
[406149679,1771590882127,-327.7496322,0.00041307,30]
[406149680,1771590882150,-150.0,0.00041307,30]
[406149681,1771590882172,-323.5979665,0.00041307,30]
[406149682,1771590882195,-186.1253935,0.00041307,30]
[406149683,1771590882218,-606.3213152,0.00041307,30]
[406149684,1771590882241,-195.5852973,0.00041307,30]
[406149685,1771590882263,-150.8802609,0.00041307,30]
[406149686,1771590882286,-186.1253935,0.00041307,30]
[406149687,1771590882311,-323.5979665,0.00041307,30]
[406149688,1771590882334,-606.3213152,0.00041307,30]
[406149689,1771590882356,-252.059326,0.00041307,120]
[406149690,1771590882378,-252.059326,0.00041307,120]
[406149691,1771590882402,-252.059326,0.00041307,120]
[406149692,1771590882424,-252.059326,0.00041307,120]
[406149693,1771590882447,-252.059326,0.00041307,120]
[406149694,1771590882470,-252.059326,0.00041307,120]
[406149695,1771590882493,-252.059326,0.00041307,120]
[406149696,1771590882516,-252.059326,0.00041307,120]
[406149697,1771590882539,-252.059326,0.00041307,120]
[406149698,1771590882561,-252.059326,0.00041307,120]
[406149699,1771590882584,-252.059326,0.00041307,120]
[406149700,1771590882607,-252.059326,0.00041307,120]
[406149701,1771590882629,-252.059326,0.00041307,120]
[406149702,1771590882653,-252.059326,0.00041307,120]
[406149703,1771590882675,-252.059326,0.00041307,120]
[406149704,1771590882697,-252.059326,0.00041307,120]
[406149705,1771590882719,-252.059326,0.00041307,120]
[406149706,1771590882742,-252.059326,0.00041307,120]
[406149707,1771590882764,-252.059326,0.00041307,120]
[406149708,1771590882787,-150.0,0.00041307,30]
[406149709,1771590882809,-195.5852973,0.00041307,30]
[406149710,1771590882832,-252.059327,0.00041307,120]
[406149711,1771590882855,-606.3213152,0.00041307,30]
[406149712,1771590882878,-297.5376487,0.00041307,30]
[406149713,1771590882901,-323.5979665,0.00041307,30]
[406149714,1771590882924,-160.964695,0.00041307,120]
[406149715,1771590882952,-160.964695,0.00041307,120]
[406149716,1771590882981,-160.964695,0.00041307,120]
[406149717,1771590883008,-160.964695,0.00041307,120]
[406149718,1771590883035,-160.964695,0.00041307,120]
[406149719,1771590883063,-160.964695,0.00041307,120]
[406149720,1771590883091,-160.964695,0.00041307,120]
[406149721,1771590883122,-160.964695,0.00041307,120]
[406149722,1771590883151,-160.964695,0.00041307,120]
[406149723,1771590883179,-160.964695,0.00041307,120]
[406149724,1771590883209,-160.964695,0.00041307,120]
[406149725,1771590883236,-160.964695,0.00041307,120]
[406149726,1771590883266,-160.964695,0.00041307,120]
[406149727,1771590883297,-160.964695,0.00041307,120]
[406149728,1771590883325,-160.964695,0.00041307,120]
[406149729,1771590883354,-160.964695,0.00041307,120]
[406149730,1771590883381,-160.964695,0.00041307,120]
[406149731,1771590883410,-160.964695,0.00041307,120]
[406149732,1771590883440,-160.964695,0.00041307,120]
[406149733,1771590883471,-160.964686,0.00041307,120]
[406149734,1771590883501,-195.5852973,0.00041307,30]
[406149735,1771590883526,-150.0,0.00041307,30]
[406149736,1771590883550,-305.4353716,0.00041307,30]
[406149737,1771590883577,-606.3213152,0.00041307,30]
[406149738,1771590883607,-186.0477746,0.00041307,30]
[406149739,1771590883634,-150.0,0.00041307,30]
[406149740,1771590883660,-606.3213152,0.00041307,30]
[406149741,1771590883686,-187.3580412,0.00041307,30]
[406149742,1771590883713,-150.0,0.00041307,30]
[406149743,1771590883741,-195.5852973,0.00041307,30]
[406149744,1771590883766,-186.1253935,0.00041307,30]
[406149745,1771590883792,-606.3213152,0.00041307,30]
[406149746,1771590883818,-323.5979665,0.00041307,30]
[406149747,1771590883844,-150.0,0.00041307,30]
[406149748,1771590883869,-195.5852973,0.00041307,30]
[406149749,1771590883896,-150.7158359,0.00041307,30]
[406149750,1771590883924,-186.1253935,0.00041307,30]
[406149751,1771590883950,-609.1259368,0.00041307,30]
[406149752,1771590883976,-195.5852973,0.00041307,30]
[406149753,1771590884001,-150.0,0.00041307,30]
[406149754,1771590884027,-186.1253935,0.00041307,30]
[406149755,1771590884053,-606.3213152,0.00041307,30]
[406149756,1771590884080,-502.576519,0.00041307,60]
[406149757,1771590884107,-502.576519,0.00041307,60]
[406149758,1771590884136,-502.576519,0.00041307,60]
[406149759,1771590884178,-502.576519,0.00041307,60]
[406149760,1771590884207,-502.576519,0.00041307,60]
[406149761,1771590884235,-502.576519,0.00041307,60]
[406149762,1771590884260,-502.576519,0.00041307,60]
[406149763,1771590884421,-502.576519,0.00041307,60]
[406149764,1771590884447,-502.576519,0.00041307,60]
[406149765,1771590884471,-502.576519,0.00041307,60]
[406149766,1771590884494,-151.0,0.00041307,120]
[406149767,1771590884517,-502.576519,0.00041307,60]
[406149768,1771590884540,-151.0,0.00041307,120]
[406149769,1771590884563,-502.576519,0.00041307,60]
[406149770,1771590884587,-151.0,0.00041307,120]
[406149771,1771590884628,-502.576519,0.00041307,60]
[406149772,1771590884663,-151.0,0.00041307,120]
[406149773,1771590884698,-502.576519,0.00041307,60]
[406149774,1771590884745,-151.0,0.00041307,120]
[406149775,1771590884776,-502.576519,0.00041307,60]
[406149776,1771590884802,-202.115207,0.00041307,120]
[406149777,1771590884827,-502.576519,0.00041307,60]
[406149778,1771590884857,-502.576519,0.00041307,60]
[406149779,1771590884886,-502.576519,0.00041307,60]
[406149780,1771590884914,-502.576519,0.00041307,60]
[406149781,1771590884940,-502.576515,0.00041307,60]
[406149782,1771590884965,-150.0,0.00041307,30]
[406149783,1771590884993,-195.5852973,0.00041307,30]
[406149784,1771590885018,-306.9815987,0.00041307,30]
[406149785,1771590885044,-186.1253935,0.00041307,30]
[406149786,1771590885070,-606.3213152,0.00041307,30]
[406149787,1771590885097,-195.5852973,0.00041307,30]
[406149788,1771590885122,-150.0,0.00041307,30]
[406149789,1771590885149,-186.1253935,0.00041307,30]
[406149790,1771590885178,-606.3213152,0.00041307,30]